fUST/lending_fUST_20240420
["ID","MTS","AMOUNT","RATE_DAILY","PERIOD"]
[323046100,1713617432066,-969.80531458,0.00026348,2]
[323046101,1713617432077,-1017.97996483,0.00026348,2]
[323046144,1713617438027,-10493.0597495,0.00026348,2]
[323046145,1713617438036,-214.492183,0.00026377,2]
[323046147,1713617438047,-417.0,0.00026519,2]
[323046149,1713617438056,-7920.21616865,0.00027,2]
[323046151,1713617438065,-316.650458,0.00027397,2]
[323046153,1713617438075,-1000.0,0.00027397,2]
[323046155,1713617438084,-166.666666,0.00027397,2]
[323046157,1713617438093,-286.892861,0.00027397,2]
[323046159,1713617438102,-205.56598046,0.00027523,2]
[323046161,1713617438113,-294.43401954,0.00027523,2]
[323046163,1713617438122,-39.52476222,0.00027523,2]
[323046945,1713617446241,-580.7034745,0.00027523,2]
[323046946,1713617446251,-500.0,0.00027523,2]
[323046947,1713617446260,-5122.8965255,0.00027524,3]
[323046948,1713617446272,-433.17706631,0.00027524,3]
[323047634,1713617679217,2476.05099914,0.00021,2]
[323047635,1713617681411,2545.74994105,0.0002,2]
[323047639,1713617737039,154.79876161,0.0002,2]
[323047640,1713617755054,242.99176967,0.0002,2]
[323047658,1713617818696,1310.36081625,0.0002,2]
[323047660,1713617933985,284.97852371,0.0002,2]
[323047661,1713618332105,-524.25304931,0.00023849,4]
[323047662,1713618332128,-555.24539217,0.0002385,2]
[323047664,1713618429098,-677.63819334,0.00023753,2]
[323047665,1713618429118,-689.06304347,0.00023754,2]
[323047666,1713618429138,-589.86686892,0.00023755,2]
[323047679,1713618632178,-182.02726603,0.00023754,2]
[323047680,1713618632189,-317.68526979,0.00023755,2]
[323047681,1713618632199,-214.492183,0.00023856,2]
[323047682,1713618632209,-319.81468118,0.000239,2]
[323047683,1713618632229,-1680.18531882,0.000239,2]
[323047684,1713618632239,-300.0,0.00023997,2]
[323047685,1713618632250,-193.28606023,0.00023998,2]
[323047686,1713618632260,-194.1452086,0.00023998,2]
[323047687,1713618632269,-600.71422748,0.00023998,4]
[323047688,1713618632279,-273.47638705,0.00023998,2]
[323047689,1713618632289,-788.03303856,0.00023998,2]
[323047690,1713618632299,-229.38855736,0.00023998,2]
[323047691,1713618632309,-159.87470798,0.00023998,2]
[323047692,1713618632318,-180.02535964,0.00023999,2]
[323047693,1713618632328,-19221.43449911,0.00024,2]
[323047717,1713618636898,175.79612867,0.000219,2]
[323047840,1713618938266,150.0,0.000219,2]
[323047841,1713618965162,261.55376796,0.00021999,2]
[323047843,1713619219106,1821.446232,0.00022695,2]
[323047844,1713619239679,150.0,0.000219,2]
[323047845,1713619255168,5192.0,0.000231,2]
[323047846,1713619265145,261.55376796,0.00021999,2]
[323047847,1713619368174,-11662.0,0.00025,5]
[323047859,1713619502889,167.959806,0.0002252,2]
[323047860,1713619541060,150.98223676,0.000229,2]
[323047861,1713619546310,24900.0,0.00022695,2]
[323047862,1713619551279,-277.81259218,0.00023224,2]
[323047863,1713619551298,-154.79876161,0.00023225,2]
[323047864,1713619551316,-524.25304931,0.00023226,4]
[323047865,1713619551335,-810.62463008,0.00023227,2]
[323047866,1713619551354,-181.76676603,0.00023228,2]
[323047867,1713619551374,-300.0,0.00023248,2]
[323047868,1713619551394,-348.57086159,0.0002388,2]
[323047869,1713619551414,-150.06,0.0002398,2]
[323047870,1713619551433,-154.16988205,0.00023997,2]
[323047871,1713619551452,-203.86581647,0.00023998,2]
[323047872,1713619551471,-565.32335955,0.00023998,2]
[323047873,1713619551490,-205.8725987,0.00023998,2]
[323047874,1713619551509,-306.77346031,0.00023998,2]
[323047875,1713619564510,1000.0,0.0002252,2]
[323047876,1713619578531,1000.0,0.0002252,2]
[323047877,1713619594623,1000.0,0.0002252,2]
[323047878,1713619612652,1000.0,0.0002252,2]
[323047880,1713619634665,1000.0,0.0002252,2]
[323047881,1713619641100,-300.0,0.00023997,2]
[323047882,1713619641121,-1.49000997,0.00023998,2]
[323047883,1713619641141,-207.26554614,0.00023998,2]
[323047884,1713619641160,-170.48245478,0.00023998,2]
[323047885,1713619641181,-437.04104068,0.00023998,2]
[323047886,1713619641200,-155.04946401,0.00023998,2]
[323047887,1713619641219,-455.58745763,0.00023998,2]
[323047888,1713619656518,1000.0,0.0002252,2]
[323047889,1713619723017,1000.0,0.0002252,2]
[323047890,1713619739029,1000.0,0.0002252,2]
[323047891,1713619761038,1000.0,0.0002252,2]
[323047892,1713619777025,1000.0,0.0002252,2]
[323047893,1713619801073,1000.0,0.0002252,2]
[323047894,1713619817043,1000.0,0.0002252,2]
[323047980,1713619835076,1000.0,0.0002252,2]
[323048038,1713619842235,150.0,0.000229,2]
[323048043,1713619843553,-300.0,0.00023997,2]
[323048044,1713619843563,-810.62463008,0.00023997,2]
[323048045,1713619843572,-745.69489739,0.00023998,2]
[323048046,1713619843582,-415.86376971,0.00023998,2]
[323048047,1713619843591,-227.81670282,0.00023998,2]
[323048064,1713619853151,1000.0,0.0002252,2]
[323048065,1713619867158,1000.0,0.0002252,2]
[323048066,1713619885047,1000.0,0.0002252,2]
[323048067,1713619901041,1000.0,0.0002252,2]
[323048068,1713619923050,1000.0,0.0002252,2]
[323048069,1713619943058,1000.0,0.0002252,2]
[323048071,1713619953334,238.20868357,0.0002252,2]
[323048072,1713619965073,1000.0,0.0002252,2]
[323048074,1713619983070,1000.0,0.0002252,2]
[323048075,1713620001068,1000.0,0.0002252,2]
[323048076,1713620011429,250.0,0.00022998,2]
[323048077,1713620021097,1000.0,0.0002252,2]
[323048079,1713620036922,184.879845,0.00022998,2]
[323048080,1713620037070,1000.0,0.0002252,2]
[323048081,1713620075080,1000.0,0.0002252,2]
[323048082,1713620097396,1000.0,0.0002252,2]
[323048083,1713620113084,1000.0,0.0002252,2]
[323048084,1713620133088,1000.0,0.0002252,2]
[323048085,1713620143753,150.65482451,0.000229,2]
[323048086,1713620153182,1000.0,0.0002252,2]
[323048087,1713620165125,234.8328327,0.00021632,2]
[323048088,1713620179242,1000.0,0.000229,2]
[323048089,1713620195101,1000.0,0.000229,2]
[323048090,1713620215102,1000.0,0.000229,2]
[323048091,1713620235138,1000.0,0.000229,2]
[323048092,1713620255184,1000.0,0.000229,2]
[323048093,1713620271147,1000.0,0.000229,2]
[323048094,1713620287118,1000.0,0.000229,2]
[323048095,1713620303115,1000.0,0.000229,2]
[323048096,1713620321118,324.733251,0.000229,2]
[323048097,1713620353931,16498.8076669,0.00022982,2]
[323048098,1713620407739,154.87609912,0.00022982,2]
[323048100,1713620444888,150.0,0.00020882,2]
[323048101,1713620449982,154.95351395,0.00019198,2]
[323048102,1713620545977,184.879845,0.00022964,2]
[323048103,1713620730120,-673.16165461,0.0002387,2]
[323048104,1713620730141,-524.25304931,0.00023871,4]
[323048105,1713620730162,-3342.29068549,0.00023871,2]
[323048106,1713620730186,-810.62463008,0.00023872,2]
[323048107,1713620730207,-211.94923146,0.00023873,2]
[323048108,1713620730228,-628.53909677,0.00023873,2]
[323048109,1713620746004,150.0,0.00021771,2]
[323048110,1713620847110,-810.62463008,0.00023867,2]
[323048111,1713620847130,-181.76676603,0.00023868,2]
[323048112,1713620847154,-300.0,0.00023871,2]
[323048113,1713620847177,-304.9995039,0.00023898,2]
[323048114,1713620847198,-164.2255697,0.000239,2]
[323048115,1713620911206,582.1819006,0.0002297,2]
[323048116,1713620958841,453.69,0.000231,2]
[323048166,1713621032595,-7713.40060437,0.000239,2]
[323048168,1713621032604,-810.62463008,0.00023996,2]
[323048170,1713621032613,-300.0,0.00023997,2]
[323048172,1713621032622,-300.0,0.00023997,2]
[323048174,1713621032631,-51.23816223,0.00023998,2]
[323048176,1713621032640,-277.40969977,0.00023998,2]
[323048178,1713621032649,-543.45574776,0.00023998,2]
[323048180,1713621032658,-1521.49865494,0.00023998,2]
[323048182,1713621032667,-285.03756496,0.00023998,2]
[323048184,1713621032677,-2621.60857679,0.00023998,2]
[323048186,1713621032688,-381.35402207,0.00023998,2]
[323048188,1713621032697,-156.09177745,0.00023998,2]
[323048190,1713621032706,-423.34279167,0.00023998,2]
[323048192,1713621032715,-1476.98563341,0.00023998,2]
[323048194,1713621032724,-400.0,0.00023998,2]
[323048196,1713621032734,-393.43786285,0.00023998,2]
[323048198,1713621032743,-155.17777796,0.00023998,2]
[323048200,1713621032752,-186.02854111,0.00023998,2]
[323048202,1713621032761,-524.25304931,0.00023998,4]
[323048204,1713621032771,-871.29955807,0.00023998,2]
[323048206,1713621032780,-646.60669283,0.00023998,2]
[323048208,1713621032789,-199.50073948,0.00023998,2]
[323048210,1713621032798,-655.08980422,0.00023998,2]
[323048212,1713621032807,-261.55376896,0.00023998,2]
[323048214,1713621032816,-201.64876762,0.00023998,2]
[323048216,1713621032825,-3508.50445239,0.00023999,2]
[323048218,1713621032835,-234.91778789,0.00023999,2]
[323048220,1713621032844,-33794.20027074,0.00024,2]
[323048222,1713621032853,-12138.01148882,0.00024,7]
[323048300,1713621038751,-687.8687053,0.00024,7]
[323048643,1713621043735,-747.85100866,0.00024,7]
[323048645,1713621043745,-151.0,0.00024,2]
[323048647,1713621043754,-151.0,0.00024,2]
[323048649,1713621043764,-151.0,0.00024,2]
[323048651,1713621043773,-151.0,0.00024,2]
[323048653,1713621043782,-158.033715,0.00024,2]
[323048655,1713621043792,-119.35685787,0.00024,2]
[323048657,1713621043804,-72.70831413,0.00024,2]
[323048659,1713621043813,-192.065172,0.00024,2]
[323048661,1713621043823,-127.98798053,0.00024,2]
[323048664,1713621043841,-64.07719147,0.00024,2]
[323048666,1713621043851,-192.065172,0.00024,2]
[323048668,1713621043860,-192.065172,0.00024,2]
[323048670,1713621043869,-192.065172,0.00024,2]
[323048672,1713621043878,-192.065172,0.00024,2]
[323048674,1713621043888,-192.065172,0.00024,2]
[323048676,1713621043897,-192.065172,0.00024,2]
[323048678,1713621043907,-192.065172,0.00024,2]
[323048680,1713621043916,-151.0,0.00024,2]
[323048682,1713621043926,-94.33302398,0.00024,2]
[323048684,1713621043938,-56.66697602,0.00024,2]
[323048686,1713621043947,-151.0,0.00024,2]
[323048688,1713621043958,-151.0,0.00024,2]
[323048690,1713621043967,-151.0,0.00024,2]
[323048692,1713621043976,-151.0,0.00024,2]
[323048694,1713621043986,-151.0,0.00024,2]
[323048696,1713621043995,-151.0,0.00024,2]
[323048698,1713621044005,-151.929524,0.00024,2]
[323048700,1713621044014,-228.962445,0.00024,2]
[323048702,1713621044023,-227.949798,0.00024,2]
[323048704,1713621044032,-227.949798,0.00024,2]
[323048706,1713621044041,-4.86488198,0.00024,2]
[323048708,1713621044053,-223.08491602,0.00024,2]
[323048710,1713621044063,-227.949798,0.00024,2]
[323048712,1713621044072,-227.949798,0.00024,2]
[323048714,1713621044081,-227.949798,0.00024,2]
[323048716,1713621044090,-227.949798,0.00024,2]
[323048718,1713621044099,-227.949798,0.00024,2]
[323048720,1713621044108,-227.949798,0.00024,2]
[323048722,1713621044117,-227.949798,0.00024,2]
[323048724,1713621044126,-227.949798,0.00024,2]
[323048726,1713621044135,-227.949798,0.00024,2]
[323048728,1713621044144,-227.949798,0.00024,2]
[323048730,1713621044153,-227.949798,0.00024,2]
[323048732,1713621044162,-227.949798,0.00024,2]
[323048734,1713621044171,-53.98883485,0.00024,2]
[323049029,1713621047199,150.0,0.000219,2]
[323051822,1713621078401,926.17888641,0.00022798,2]
[323053817,1713621101024,7005.62684056,0.00022798,2]
[323062026,1713621324765,6444.29714703,0.00022689,2]
[323062030,1713621453356,168.746177,0.00022435,2]
[323062031,1713621545174,417.03326675,0.00021918,2]
[323062032,1713621650405,285.9895771,0.00022677,2]
[323062033,1713621666228,288.63212284,0.00022677,2]
[323062034,1713621683108,17395.30170928,0.00022678,2]
[323062035,1713621752552,150.0,0.00022,2]
[323062036,1713621753038,150.0,0.00022192,2]
[323062037,1713621918181,9224.8083575,0.0002169,2]
[323062038,1713621929391,9124.55618459,0.00022192,2]
[323062046,1713621963277,385.49374237,0.00022192,2]
[323062047,1713621994122,589.86686892,0.00022571,2]
[323062048,1713622033275,-300.0,0.00022649,2]
[323062049,1713622033296,-408.64389017,0.00022649,2]
[323062050,1713622033318,-300.0,0.0002265,2]
[323062051,1713622033338,-808.01963008,0.0002265,2]
[323062052,1713622033358,-714.65728942,0.0002265,2]
[323062106,1713622231768,-386.01217285,0.00022626,2]
[323062108,1713622231779,-88.49581919,0.00022626,2]
[323062110,1713622231789,-154.79876161,0.00022626,2]
[323062112,1713622231797,-193.49255053,0.00022626,2]
[323062114,1713622231807,-469.3412373,0.00022626,2]
[323062116,1713622231816,-1846.60181925,0.00022627,2]
[323062167,1713622237751,-181.76676603,0.00022625,2]
[323062169,1713622237761,-739.73463377,0.00022627,2]
[323062171,1713622237769,-41.1086002,0.00022627,2]
[323062243,1713622239954,-113.69016141,0.00022627,2]
[323062245,1713622239964,-154.79876161,0.00022627,2]
[323062247,1713622239974,-2209.60204497,0.00022628,2]
[323062249,1713622239986,-1132.68864052,0.00022628,2]
[323062251,1713622239996,-173.12884358,0.00022629,2]
[323062253,1713622240006,-203.72048069,0.00022629,2]
[323062255,1713622240015,-154.79876161,0.00022629,2]
[323062257,1713622240025,-207.76832992,0.00022629,2]
[323062259,1713622240035,-1549.87348817,0.0002263,2]
[323062261,1713622240045,-300.0,0.0002263,2]
[323062263,1713622240054,-154.79876161,0.00022631,2]
[323062265,1713622240064,-300.0,0.00022633,2]
[323062267,1713622240076,-7363.70156566,0.00022678,2]
[323062269,1713622240085,-266.87456593,0.00022709,2]
[323062271,1713622240095,-2555.40409908,0.00022798,2]
[323062273,1713622240104,-203.86105816,0.00022798,2]
[323062275,1713622240114,-15389.86188913,0.00022798,2]
[323062277,1713622240123,-626.14257223,0.00022914,2]
[323062279,1713622240134,-150.0,0.00023014,2]
[323062281,1713622240144,-626.14257222,0.0002316,2]
[323062283,1713622240155,-626.14257222,0.00023406,2]
[323062285,1713622240165,-626.14257222,0.00023652,2]
[323062287,1713622240174,-202.77564585,0.00023896,2]
[323062289,1713622240184,-626.14257222,0.00023898,2]
[323062292,1713622240194,-783.98735315,0.00023972,2]
[323062293,1713622240204,-2017.52203615,0.00023994,2]
[323062296,1713622240215,-524.25304931,0.00023994,4]
[323062298,1713622240224,-347.85651992,0.00023995,2]
[323062300,1713622240234,-203.8815862,0.00023995,2]
[323062301,1713622240243,-308.26347028,0.00023996,2]
[323062303,1713622240253,-154.95351395,0.00023996,2]
[323062306,1713622240262,-154.95351395,0.00023996,2]
[323062308,1713622240272,-154.95351395,0.00023996,2]
[323062309,1713622240282,-2621.60857679,0.00023996,2]
[323062311,1713622240292,-154.95351395,0.00023996,2]
[323062313,1713622240301,-1674.13824562,0.00023996,2]
[323062315,1713622240311,-965.62361684,0.00023996,2]
[323062318,1713622240321,-211.879016,0.00023996,2]
[323062331,1713622240444,-154.95351395,0.00023996,2]
[323062333,1713622240454,-2126.19433891,0.00023996,2]
[323062335,1713622240464,-186.02854111,0.00023996,2]
[323062337,1713622240473,-155.1194993,0.00023996,2]
[323062339,1713622240482,-155.05444618,0.00023996,2]
[323062341,1713622240492,-154.95351395,0.00023996,2]
[323062343,1713622240502,-329.36344872,0.00023996,2]
[323062345,1713622240514,-672.86942406,0.00023996,2]
[323062347,1713622240525,-155.17712676,0.00023996,2]
[323062349,1713622240535,-900.00425,0.00023996,2]
[323062351,1713622240545,-900.00425,0.00023996,2]
[323062353,1713622240554,-151.0,0.00023996,2]
[323062355,1713622240564,-159.522791,0.00023996,2]
[323062357,1713622240574,-689.06304347,0.00023996,2]
[323062359,1713622240584,-151.0,0.00023996,2]
[323062361,1713622240593,-677.63819334,0.00023996,2]
[323062363,1713622240603,-322.451455,0.00023996,2]
[323062365,1713622240613,-151.620866,0.00023996,2]
[323062367,1713622240624,-322.451455,0.00023996,2]
[323062369,1713622240637,-361.68523886,0.00023996,2]
[323062371,1713622240647,-471.190717,0.00023996,2]
[323062373,1713622240659,-378.964962,0.00023996,2]
[323062375,1713622240670,-378.964962,0.00023996,2]
[323062377,1713622240679,-378.964962,0.00023996,2]
[323062379,1713622240690,-378.964962,0.00023996,2]
[323062381,1713622240700,-378.964962,0.00023996,2]
[323062383,1713622240712,-378.964962,0.00023996,2]
[323062385,1713622240722,-151.0,0.00023996,2]
[323062387,1713622240731,-189.24146,0.00023996,2]
[323062389,1713622240742,-1155.0862532,0.00023996,2]
[323062391,1713622240752,-151.0,0.00023996,2]
[323062393,1713622240762,-200.325666,0.00023996,2]
[323062395,1713622240773,-2133.281898,0.00023996,2]
[323062397,1713622240784,-2133.281898,0.00023996,2]
[323062399,1713622240793,-2133.281898,0.00023996,2]
[323062401,1713622240802,-2133.281898,0.00023996,2]
[323062403,1713622240810,-2133.281898,0.00023996,2]
[323062405,1713622240820,-2133.281898,0.00023996,2]
[323062407,1713622240830,-2133.281898,0.00023996,2]
[323062409,1713622240840,-2133.281898,0.00023996,2]
[323062411,1713622240852,-618.243527,0.00023996,2]
[323062413,1713622240862,-618.243527,0.00023996,2]
[323062415,1713622240871,-618.243527,0.00023996,2]
[323062417,1713622240880,-618.243527,0.00023996,2]
[323062418,1713622240891,-618.243527,0.00023996,2]
[323062421,1713622240902,-618.243527,0.00023996,2]
[323062423,1713622240914,-618.243527,0.00023996,2]
[323062425,1713622240923,-618.243527,0.00023996,2]
[323062426,1713622240932,-618.243527,0.00023996,2]
[323062429,1713622240941,-1741.680693,0.00023996,2]
[323062431,1713622240951,-1741.680693,0.00023996,2]
[323062433,1713622240961,-1741.680693,0.00023996,2]
[323062435,1713622240971,-618.243527,0.00023996,2]
[323062437,1713622240982,-1741.680693,0.00023996,2]
[323062438,1713622240991,-1741.680693,0.00023996,2]
[323062441,1713622241001,-151.0,0.00023996,2]
[323062442,1713622241010,-151.0,0.00023996,2]
[323062445,1713622241021,-151.0,0.00023996,2]
[323062446,1713622241030,-1741.680693,0.00023996,2]
[323062448,1713622241039,-151.0,0.00023996,2]
[323062450,1713622241049,-1741.680693,0.00023996,2]
[323062452,1713622241058,-151.0,0.00023996,2]
[323062455,1713622241067,-1741.680693,0.00023996,2]
[323062457,1713622241077,-1741.680693,0.00023996,2]
[323062459,1713622241086,-1741.680693,0.00023996,2]
[323062460,1713622241096,-3358.445651,0.00023996,2]
[323062462,1713622241106,-3358.445651,0.00023996,2]
[323062464,1713622241116,-3358.445651,0.00023996,2]
[323062466,1713622241126,-3358.445651,0.00023996,2]
[323062468,1713622241136,-3358.445651,0.00023996,2]
[323062470,1713622241145,-3358.445651,0.00023996,2]
[323062472,1713622241155,-3358.445651,0.00023996,2]
[323062474,1713622241165,-3358.445651,0.00023996,2]
[323062476,1713622241174,-3358.445651,0.00023996,2]
[323062479,1713622241184,-3358.445651,0.00023996,2]
[323062480,1713622241195,-151.864197,0.00023996,2]
[323062482,1713622241204,-155.10074608,0.00023997,2]
[323062484,1713622241214,-326.93310549,0.00023998,2]
[323062486,1713622241224,-602.48199524,0.00023998,2]
[323062488,1713622241235,-7099.05485067,0.00023998,2]
[323062490,1713622241244,-26378.11522401,0.00023998,2]
[323062493,1713622241255,-205.79685127,0.00023998,2]
[323062494,1713622241264,-2096.53898841,0.00023998,2]
[323062497,1713622241274,-208.636186,0.00023998,2]
[323062498,1713622241284,-151.0,0.00023998,2]
[323062500,1713622241294,-151.0,0.00023998,2]
[323062502,1713622241304,-151.0,0.00023998,2]
[323062504,1713622241314,-151.0,0.00023998,2]
[323062506,1713622241324,-151.0,0.00023998,2]
[323062508,1713622241334,-151.0,0.00023998,2]
[323062510,1713622241345,-151.0,0.00023998,2]
[323062513,1713622241355,-151.0,0.00023998,2]
[323062515,1713622241364,-151.0,0.00023998,2]
[323062516,1713622241373,-151.0,0.00023998,2]
[323062518,1713622241382,-259.651721,0.00023998,2]
[323062521,1713622241391,-153.398727,0.00023998,2]
[323062523,1713622241400,-151.0,0.00023998,2]
[323062524,1713622241411,-151.0,0.00023998,2]
[323062526,1713622241420,-152.07937,0.00023998,2]
[323062529,1713622241429,-151.0,0.00023998,2]
[323062531,1713622241438,-283.534611,0.00023998,2]
[323062533,1713622241447,-151.0,0.00023998,2]
[323062534,1713622241456,-151.0,0.00023998,2]
[323062537,1713622241465,-151.0,0.00023998,2]
[323062538,1713622241474,-151.268242,0.00023998,2]
[323062540,1713622241483,-900.00425,0.00023998,2]
[323062542,1713622241492,-900.00425,0.00023998,2]
[323062544,1713622241501,-900.00425,0.00023998,2]
[323062546,1713622241510,-900.00425,0.00023998,2]
[323062548,1713622241518,-900.00425,0.00023998,2]
[323062550,1713622241527,-900.00425,0.00023998,2]
[323062552,1713622241536,-900.00425,0.00023998,2]
[323062554,1713622241545,-900.00425,0.00023998,2]
[323062556,1713622241554,-900.00425,0.00023998,2]
[323062558,1713622241563,-900.00425,0.00023998,2]
[323062560,1713622241572,-900.00425,0.00023998,2]
[323062562,1713622241581,-900.00425,0.00023998,2]
[323062564,1713622241590,-169.222657,0.00023998,2]
[323062566,1713622241600,-248.188842,0.00023998,2]
[323062569,1713622241610,-322.451455,0.00023998,2]
[323062570,1713622241620,-322.451455,0.00023998,2]
[323062573,1713622241635,-322.451455,0.00023998,2]
[323062575,1713622241643,-322.451455,0.00023998,2]
[323062576,1713622241652,-322.451455,0.00023998,2]
[323062579,1713622241663,-322.451455,0.00023998,2]
[323062580,1713622241673,-322.451455,0.00023998,2]
[323062583,1713622241682,-322.451455,0.00023998,2]
[323062585,1713622241691,-322.451455,0.00023998,2]
[323062586,1713622241701,-322.451455,0.00023998,2]
[323062589,1713622241710,-126.74385417,0.00023998,2]
[323062734,1713622242848,-154.79876161,0.00022626,2]
[323062736,1713622242858,-195.70760083,0.00023998,2]
[323062738,1713622242867,-38.304671,0.00023998,2]
[323063727,1713622252453,276.88787924,0.00021898,2]
[323064952,1713622265191,244.05504786,0.00021077,2]
[323065754,1713622372567,273.023072,0.00019196,2]
[323065755,1713622415978,154.79876161,0.00021077,2]
[323065756,1713622419304,227.95100065,0.00019196,2]
[323065757,1713622422046,2559.1219358,0.0002234,2]
[323065758,1713622427819,156.27488083,0.00019196,2]
[323065759,1713622428062,155.37728442,0.00019196,2]
[323065760,1713622428400,5532.0636261,0.0002223,2]
[323065761,1713622434391,155.16169237,0.00019196,2]
[323065767,1713622453991,154.79876161,0.00022,2]
[323065770,1713622471984,154.79876161,0.00022,2]
[323065771,1713622489925,154.79876161,0.00022,2]
[323065772,1713622512034,154.79876161,0.00022,2]
[323065773,1713622533943,154.79876161,0.00022,2]
[323065774,1713622553651,461.04324906,0.00021898,2]
[323065775,1713622558041,154.79876161,0.00022,2]
[323065776,1713622583937,154.79876161,0.00022,2]
[323065778,1713622599936,154.79876161,0.00022,2]
[323065779,1713622621970,154.79876161,0.00022,2]
[323065780,1713622639938,178.00272051,0.00022,2]
[323065781,1713622650006,155.0,0.00022,2]
[323065782,1713622650627,155.0,0.00022192,2]
[323065783,1713622670374,460.403996,0.00022304,2]
[323065784,1713622762360,2515.4584757,0.00022326,2]
[323066022,1713622842001,2137.1707495,0.00022303,2]
[323066242,1713622855475,307.36216604,0.00021898,2]
[323066243,1713622975533,16073.56331879,0.00021898,2]
[323066244,1713622997768,238.20868357,0.00021898,2]
[323066245,1713623084005,468.17882458,0.000227,2]
[323066246,1713623087908,154.79876161,0.000227,2]
[323066247,1713623088222,300.0,0.000227,2]
[323066248,1713623090533,181.76676603,0.000227,2]
[323066249,1713623091163,521.19476789,0.000227,2]
[323066250,1713623092720,471.46116533,0.000227,2]
[323066251,1713623100908,300.0,0.000227,2]
[323066252,1713623102289,154.79876161,0.000227,2]
[323066253,1713623103155,308.32296411,0.000227,2]
[323066254,1713623103433,154.79876161,0.000227,2]
[323066255,1713623103637,300.0,0.000227,2]
[323066256,1713623104185,154.79876161,0.000227,2]
[323066257,1713623107636,154.79876161,0.000227,2]
[323066258,1713623107847,1549.87348817,0.000227,2]
[323066259,1713623107958,203.72048069,0.000227,2]
[323066260,1713623108425,189.08636994,0.000227,2]
[323066261,1713623109105,474.50799204,0.000227,2]
[323066262,1713623110340,193.49255053,0.000227,2]
[323066263,1713623112460,207.76832992,0.000227,2]
[323066264,1713623113103,154.79876161,0.000227,2]
[323066265,1713623114336,808.01963008,0.000227,2]
[323066266,1713623120162,2098.29373442,0.000227,2]
[323066267,1713623120200,564.20205004,0.000227,2]
[323066268,1713623120262,154.79876161,0.000227,2]
[323066269,1713623123894,277.81259218,0.000227,2]
[323066270,1713623124742,2586.33645302,0.000227,2]
[323066271,1713623149373,154.79876161,0.000227,2]
[323066272,1713623155037,181.76676603,0.000227,2]
[323066273,1713623156911,204.90811069,0.000206,2]
[323066274,1713623160690,300.0,0.000227,2]
[323066275,1713623164130,300.0,0.000227,2]
[323066276,1713623166760,300.0,0.000227,2]
[323066277,1713623167660,521.19476789,0.000227,2]
[323066278,1713623176163,308.32296411,0.000227,2]
[323066279,1713623176860,1549.87348817,0.000227,2]
[323066280,1713623177470,207.76832992,0.000227,2]
[323066281,1713623186466,203.72048069,0.000227,2]
[323066282,1713623187889,173.12884358,0.000227,2]
[323066283,1713623188714,193.49255053,0.000227,2]
[323066284,1713623190379,173.12884358,0.000227,2]
[323066285,1713623193627,154.79876161,0.000227,2]
[323066286,1713623194869,173.12884358,0.000227,2]
[323066287,1713623199371,173.12884358,0.000227,2]
[323066289,1713623226946,230.201998,0.00022656,2]
[323066290,1713623228140,-251.59511513,0.000227,2]
[323066291,1713623228160,-300.0,0.00022701,2]
[323066292,1713623228181,-300.0,0.00022701,2]
[323066293,1713623228201,-283.15869964,0.00022702,2]
[323066294,1713623228220,-469.3412373,0.00022702,2]
[323066295,1713623228239,-644.26547628,0.00022702,2]
[323066296,1713623269336,154.79876161,0.00022699,2]
[323066297,1713623272045,154.79876161,0.00022699,2]
[323066298,1713623307200,469.3412373,0.00022699,2]